bitfinex/quotes_BTCUSD_20251029
["timestamp","ask_amount","ask_price","bid_price","bid_amount"]
[1761767349224,0.09325718,110880.0,110870.0,0.18039144]
[1761767349439,0.27363236,110880.0,110870.0,0.18039144]
[1761767349659,0.09325718,110880.0,110870.0,0.18039144]
[1761767349865,0.09325718,110880.0,110870.0,0.21168144]
[1761767350108,0.09325718,110880.0,110870.0,0.18039144]
[1761767350315,0.09325718,110880.0,110870.0,0.21168144]
[1761767350720,0.09369463,110880.0,110870.0,0.18039144]
[1761767351177,0.09369463,110880.0,110870.0,0.21168144]
[1761767351386,0.27406981,110880.0,110870.0,0.21168144]
[1761767351587,0.09369463,110880.0,110870.0,0.18039144]
[1761767351792,0.09369463,110880.0,110870.0,0.21168144]
[1761767352581,0.126033,110880.0,110870.0,0.21168144]
[1761767352794,0.126033,110880.0,110870.0,0.18039144]
[1761767353003,0.126033,110880.0,110870.0,0.21262144]
[1761767353227,0.126033,110880.0,110870.0,0.25211144]
[1761767353441,0.05376194,110880.0,110870.0,0.39143045]
[1761767353654,0.05376194,110880.0,110870.0,0.43919891]
[1761767354126,0.05376194,110880.0,110870.0,0.39143045]
[1761767355211,0.173463,110880.0,110870.0,0.18039144]
[1761767355436,0.32149981,110880.0,110870.0,0.18020416]
[1761767355652,0.27662981,110880.0,110870.0,0.18039144]
[1761767355875,0.18039144,110870.0,110850.0,0.27750518]
[1761767356101,0.21265772,110860.0,110840.0,0.18044027]
[1761767356312,0.21784399,110850.0,110840.0,0.30248928]
[1761767356518,0.05672388,110850.0,110840.0,0.35198928]
[1761767356737,0.08317388,110850.0,110840.0,0.21267027]
[1761767356958,0.26359787,110850.0,110840.0,0.18044027]
[1761767357170,0.02772315,110850.0,110840.0,0.35198928]
[1761767357400,0.05417315,110850.0,110840.0,0.30248928]
[1761767357620,0.05347315,110850.0,110840.0,0.30248928]
[1761767358077,0.05447315,110850.0,110840.0,0.30348928]
[1761767358508,0.02802315,110850.0,110840.0,0.35298928]
[1761767359200,0.0280288,110850.0,110840.0,0.35298928]
[1761767359414,0.0280288,110850.0,110840.0,0.35198928]
[1761767359827,0.23490279,110850.0,110840.0,0.30248928]
[1761767360031,0.0544788,110850.0,110840.0,0.30248928]
[1761767360251,0.0280288,110850.0,110840.0,0.30248928]
[1761767360672,0.05231951,110850.0,110840.0,0.30248928]
[1761767362478,0.3040735,110850.0,110840.0,0.18044027]
[1761767363115,0.2593835,110850.0,110840.0,0.21267027]
[1761767363334,0.2593835,110850.0,110840.0,0.18044027]
[1761767363553,0.3040735,110850.0,110840.0,0.18044027]
[1761767363774,0.3040735,110850.0,110830.0,0.18951937]
[1761767363996,0.00045,110840.0,110830.0,0.18951937]
[1761767364221,0.22595027,110840.0,110830.0,0.18951937]
[1761767365090,0.25024098,110840.0,110830.0,4e-05]
[1761767365362,0.25024098,110840.0,110830.0,0.0001847]
[1761767366439,0.37624227,110840.0,110830.0,0.0001847]
[1761767367529,0.35195156,110840.0,110830.0,0.0001847]
[1761767367747,0.22695027,110840.0,110830.0,0.0001847]
[1761767367960,0.22695027,110840.0,110830.0,0.18064125]
[1761767368175,0.22695027,110840.0,110830.0,0.0001847]
[1761767369764,0.24636481,110840.0,110830.0,0.0001847]
[1761767370475,0.58636481,110840.0,110830.0,0.0001847]
[1761767370721,0.7123661,110840.0,110830.0,0.0001847]
[1761767370965,0.73665681,110840.0,110830.0,0.0001847]
[1761767371211,0.7123661,110840.0,110830.0,0.0001847]
[1761767371738,0.58636481,110840.0,110830.0,0.0001847]
[1761767372413,0.58636481,110840.0,110830.0,0.18064125]
[1761767372926,0.40592454,110840.0,110830.0,0.18064125]
[1761767373150,0.56695027,110840.0,110830.0,0.18064125]
[1761767373855,0.52189027,110840.0,110830.0,0.21287125]
[1761767374881,0.56695027,110840.0,110830.0,0.0001847]
[1761767375126,0.56695027,110840.0,110830.0,0.18064125]
[1761767375622,0.52189027,110840.0,110830.0,0.18064125]
[1761767375865,0.56695027,110840.0,110830.0,0.0001847]
[1761767376389,0.34145,110840.0,110830.0,0.18064125]
[1761767376672,0.52189027,110840.0,110830.0,0.21287125]
[1761767377866,0.52189027,110840.0,110830.0,0.25299125]
[1761767378502,0.00145,110840.0,110830.0,0.25299125]
[1761767378724,0.001,110840.0,110830.0,0.29921125]
[1761767378939,0.001,110840.0,110830.0,0.18064125]
[1761767378940,0.0723,110840.0,110830.0,0.18064125]
[1761767379163,0.02448,110840.0,110830.0,0.21233125]
[1761767379417,0.001,110840.0,110830.0,0.29690125]
[1761767379851,0.53984043,110850.0,110840.0,0.18044027]
[1761767380114,0.55642043,110850.0,110840.0,0.18044027]
[1761767380364,0.57100043,110850.0,110840.0,0.21213027]
[1761767380782,0.57100043,110850.0,110840.0,0.18044027]
[1761767381000,0.58773043,110850.0,110840.0,0.18044027]
[1761767381695,0.57200043,110850.0,110840.0,0.21213027]
[1761767382359,0.57200043,110850.0,110840.0,0.18044027]
[1761767383034,0.57200043,110850.0,110830.0,0.22311125]
[1761767383257,0.57200043,110850.0,110830.0,0.26933125]
[1761767383479,0.57199996,110850.0,110840.0,0.03169]
[1761767383696,0.57199996,110850.0,110840.0,0.21213027]
[1761767384411,0.57199977,110850.0,110840.0,0.21213027]
[1761767384632,0.57151077,110850.0,110840.0,0.03169]
[1761767384825,0.58824077,110850.0,110830.0,0.0426547]
[1761767385073,0.55708077,110850.0,110840.0,0.18044027]
[1761767385290,0.03102,110840.0,110830.0,0.25480108]
[1761767385977,0.54035163,110850.0,110840.0,0.18044027]
[1761767386216,0.36142678,110850.0,110840.0,0.21213027]
[1761767386439,0.54185077,110850.0,110840.0,0.21213027]
[1761767386912,0.54085077,110850.0,110840.0,0.18044027]
[1761767387139,0.58695077,110850.0,110840.0,0.18044027]
[1761767387360,0.54085077,110850.0,110840.0,0.21213027]
[1761767387581,0.36042678,110850.0,110840.0,0.21213027]
[1761767387804,0.54085077,110850.0,110840.0,0.21213027]
[1761767388036,0.36042678,110850.0,110840.0,0.21213027]
[1761767388255,0.35892678,110850.0,110840.0,0.30649641]
[1761767388481,0.01941578,110850.0,110840.0,0.25835027]
[1761767388712,0.0015,110850.0,110840.0,0.21213027]
[1761767389425,0.42112649,110860.0,110850.0,0.18042399]
[1761767389426,0.38370649,110860.0,110850.0,0.18042399]
[1761767389638,0.422139,110860.0,110850.0,0.25458399]
[1761767389862,0.50086243,110860.0,110850.0,0.18042399]
[1761767390096,0.68127037,110860.0,110840.0,0.18044027]
[1761767390287,0.0091,110850.0,110840.0,0.18044027]
[1761767390544,0.2603647,110850.0,110840.0,0.18044027]
[1761767390797,0.09935649,110850.0,110840.0,0.18044027]
[1761767391016,0.03339071,110850.0,110840.0,0.18044027]
[1761767391246,0.03339071,110850.0,110840.0,0.21213027]
[1761767391693,0.03293071,110850.0,110840.0,0.25835027]
[1761767391919,0.03863,110850.0,110840.0,0.21213027]
[1761767393952,0.00864,110850.0,110840.0,0.21213027]
[1761767394178,0.00864,110850.0,110840.0,0.25835027]
[1761767394897,0.03863,110850.0,110840.0,0.21213027]
[1761767395374,0.41604992,110860.0,110850.0,0.18042399]
[1761767395589,0.63489404,110860.0,110850.0,0.18042399]
[1761767395814,0.68127404,110860.0,110850.0,0.18042399]
[1761767396931,0.63489404,110860.0,110850.0,0.18042399]
[1761767397183,0.63489404,110860.0,110850.0,0.21211399]
[1761767397413,0.63489404,110860.0,110850.0,0.18042399]
[1761767397868,0.42449632,110860.0,110850.0,0.30080399]
[1761767398105,0.45448632,110860.0,110850.0,0.25458399]
[1761767398332,0.45548632,110860.0,110850.0,0.25458399]
[1761767398775,0.05315289,110860.0,110850.0,0.30080399]
[1761767399000,0.03373711,110860.0,110850.0,0.30080399]
[1761767399219,0.03373711,110860.0,110850.0,0.25458399]
[1761767399446,0.03373711,110860.0,110850.0,0.30080399]
[1761767399712,0.03273711,110860.0,110850.0,0.30080399]
[1761767400157,0.03273711,110860.0,110850.0,0.30180399]
[1761767400408,0.07626866,110870.0,110850.0,1.27922833]
[1761767400644,0.04678252,110880.0,110870.0,0.18039144]
[1761767400874,0.0002,110890.0,110880.0,0.18037518]
[1761767401107,0.00864743,110900.0,110890.0,0.18035891]
[1761767401345,8e-05,110920.0,110910.0,0.18032639]
[1761767401346,0.08080449,110920.0,110910.0,0.18032639]
[1761767401568,0.03242343,110920.0,110910.0,0.25448639]
[1761767401818,8e-05,110920.0,110910.0,0.72044684]
[1761767402048,0.03234343,110930.0,110920.0,0.18031013]
[1761767402314,0.03914359,110940.0,110930.0,0.18029387]
[1761767402315,0.07148702,110940.0,110930.0,0.18029387]
[1761767402553,0.03263045,110940.0,110930.0,0.81023333]
[1761767402780,1e-08,110940.0,110930.0,1.56997378]
[1761767403282,1e-08,110940.0,110930.0,1.61615605]
[1761767403516,1e-08,110940.0,110930.0,1.7144092]
[1761767403754,1e-08,110940.0,110930.0,1.70701383]
[1761767404219,1e-08,110940.0,110930.0,1.71101383]
[1761767404446,1e-08,110940.0,110930.0,1.70701383]
[1761767404677,1e-08,110940.0,110930.0,1.68701385]
[1761767404926,1e-08,110940.0,110930.0,1.69601385]
[1761767405154,1e-08,110940.0,110930.0,1.69701384]
[1761767405387,1e-08,110940.0,110930.0,0.96117006]
[1761767405617,1e-08,110940.0,110930.0,0.97117005]
[1761767405846,0.0002,110970.0,110960.0,0.18024513]
[1761767406063,0.0002,110970.0,110960.0,0.39044414]
[1761767406749,0.0002,110970.0,110960.0,1.12628792]
[1761767406966,0.0002,110970.0,110960.0,0.39044414]
[1761767407190,0.0002,110970.0,110960.0,1.12628792]
[1761767407452,0.00238539,110970.0,110960.0,1.47028792]
[1761767407674,0.00238539,110970.0,110960.0,1.56010693]
[1761767408591,0.00238539,110970.0,110960.0,1.55610693]
[1761767408816,0.00238539,110970.0,110960.0,1.55810693]
[1761767409277,0.00238539,110970.0,110960.0,1.55610693]
[1761767409500,0.00238539,110970.0,110960.0,0.39044414]
[1761767409736,0.00238539,110970.0,110960.0,0.39244414]
[1761767410134,0.03270539,110970.0,110960.0,0.18224513]
[1761767410136,0.03270539,110970.0,110960.0,0.26632513]
[1761767410137,0.00238539,110970.0,110960.0,0.26632513]
[1761767410365,0.00238539,110970.0,110960.0,0.35114414]
[1761767410831,0.00238539,110970.0,110960.0,0.35314414]
[1761767411067,0.00238539,110970.0,110960.0,0.30515414]
[1761767411553,0.04037539,110970.0,110960.0,0.30515414]
[1761767411776,0.00238539,110970.0,110960.0,0.35314414]
[1761767411995,0.28326771,110970.0,110960.0,0.002]
[1761767412222,0.67039771,110970.0,110960.0,0.004]
[1761767412674,0.62326771,110970.0,110960.0,0.002]
[1761767413127,0.45139231,110970.0,110960.0,0.18124513]
[1761767413356,0.35073888,110970.0,110960.0,0.21450513]
[1761767413587,0.35073888,110970.0,110960.0,0.26201513]
[1761767413820,0.59895777,110970.0,110950.0,0.22096114]
[1761767414048,0.67624581,110970.0,110950.0,0.22096137]
[1761767414283,0.18398216,110960.0,110940.0,0.18926465]
[1761767414519,0.03952,110950.0,110940.0,0.27908366]
[1761767414741,0.04787349,110950.0,110940.0,0.27908366]
[1761767414975,0.00835349,110950.0,110940.0,0.31234366]
[1761767415247,0.07940349,110950.0,110940.0,0.27009663]
[1761767415473,0.07940349,110950.0,110940.0,0.30335663]
[1761767415705,0.25966486,110950.0,110940.0,0.21353762]
[1761767415961,0.09155212,110950.0,110940.0,0.18027762]
[1761767416199,0.28533309,110950.0,110930.0,0.22275922]
[1761767416453,0.18027762,110940.0,110920.0,0.18932563]
[1761767416687,0.19040111,110940.0,110930.0,0.18029387]
[1761767416910,0.52204762,110940.0,110930.0,0.18029387]
[1761767417142,0.53039796,110940.0,110930.0,0.25425387]
[1761767417607,0.53039796,110940.0,110930.0,0.18029387]
[1761767417848,0.56015796,110940.0,110920.0,0.23792265]
[1761767418118,0.56015796,110940.0,110920.0,0.18039715]
[1761767418362,0.56015796,110940.0,110930.0,0.18029387]
[1761767418584,0.56015796,110940.0,110920.0,0.18039715]
[1761767418807,0.19203387,110930.0,110920.0,0.18039715]
[1761767419055,0.23916387,110930.0,110920.0,0.18039715]
[1761767419283,0.24751909,110930.0,110920.0,8.702e-05]
[1761767420212,0.24751909,110930.0,110920.0,0.18139715]
[1761767420442,0.20038909,110930.0,110920.0,0.18139715]
[1761767420666,0.24751909,110930.0,110920.0,0.18239715]
[1761767420900,0.01832522,110930.0,110920.0,0.21565715]
[1761767421133,0.34,110940.0,110930.0,0.18029387]
[1761767421380,0.42401206,110950.0,110940.0,0.18027762]
[1761767421628,0.03234343,110960.0,110950.0,0.18026137]
[1761767421860,0.08517058,110970.0,110950.0,0.25422137]
[1761767422110,0.42517058,110970.0,110960.0,0.18024513]
[1761767422358,0.08517058,110970.0,110960.0,0.21350513]
[1761767422595,0.11670058,110970.0,110950.0,0.22096137]
[1761767422819,0.45670058,110970.0,110960.0,0.18024513]
[1761767423047,0.46907696,110970.0,110960.0,0.21350513]
[1761767423271,0.47207696,110970.0,110960.0,0.18024513]
[1761767423503,0.18024513,110960.0,110950.0,0.18026137]
[1761767423753,0.18201513,110960.0,110950.0,0.18026137]
[1761767423980,0.00177,110960.0,110950.0,0.21352137]
[1761767424240,0.48467696,110970.0,110950.0,0.21352137]
[1761767424676,0.18024513,110960.0,110950.0,0.21352137]
[1761767424896,0.03153,110960.0,110950.0,0.21352137]
[1761767425106,0.43754696,110970.0,110960.0,0.18024513]
[1761767425577,0.56906527,110970.0,110960.0,0.21350513]
[1761767425806,0.04883638,110970.0,110960.0,0.21350513]
[1761767426040,0.05102177,110970.0,110960.0,0.21350513]
[1761767426517,0.01556177,110970.0,110960.0,0.26201513]
[1761767426744,0.00318539,110970.0,110960.0,0.26201513]
[1761767426976,0.00218539,110970.0,110960.0,0.35183414]
[1761767427200,0.00218539,110970.0,110960.0,1.14188747]
[1761767427645,0.00218539,110970.0,110960.0,1.14288747]
[1761767428563,0.00218539,110970.0,110960.0,1.08967792]
[1761767429000,0.00218539,110970.0,110960.0,0.35383414]
[1761767430396,0.00218539,110970.0,110960.0,0.34249063]
[1761767433174,0.00218539,110970.0,110960.0,0.34253063]
[1761767433397,0.00218539,110970.0,110960.0,1.07837441]
[1761767433624,0.00218539,110970.0,110960.0,0.34253063]
[1761767434313,0.01059047,110970.0,110960.0,0.34253063]
[1761767435521,0.01059047,110970.0,110960.0,1.07837441]
[1761767436390,0.01059047,110970.0,110960.0,0.34253063]
[1761767436821,0.01059047,110970.0,110960.0,1.07837441]
[1761767437808,0.01059047,110970.0,110960.0,0.34253063]
[1761767438555,0.01059047,110970.0,110960.0,1.41837441]
[1761767438984,0.01059047,110970.0,110960.0,0.68253063]
[1761767439871,0.01059047,110970.0,110960.0,1.41837441]
[1761767440086,0.01059047,110970.0,110960.0,0.34253063]
[1761767442618,0.01059047,110970.0,110960.0,1.07837441]
[1761767443078,0.01059047,110970.0,110960.0,1.16819342]
[1761767443313,0.01059047,110970.0,110960.0,1.07837441]
[1761767444733,0.01059047,110970.0,110960.0,1.41837441]
[1761767445447,0.01059047,110970.0,110960.0,1.71194909]
[1761767445448,1e-08,110970.0,110960.0,1.71194909]
[1761767445677,0.0002,110980.0,110970.0,0.18022889]
[1761767445892,0.00034457,110980.0,110970.0,0.89431982]
[1761767446130,1e-08,110980.0,110970.0,1.28050209]
[1761767446371,0.00021843,110980.0,110970.0,1.29050208]
[1761767446583,10.07471936,111000.0,110990.0,0.25480641]
[1761767446798,10.07471936,111000.0,110990.0,0.27001542]
[1761767447034,10.07471936,111000.0,110990.0,0.38421568]
[1761767447245,10.07471936,111000.0,110990.0,0.39301542]
[1761767447460,10.07471936,111000.0,110990.0,0.34462542]
[1761767447679,10.20674062,111000.0,110990.0,0.09281901]
[1761767447912,10.25446062,111000.0,110990.0,0.09281901]
[1761767448136,10.25446062,111000.0,110990.0,0.003]
[1761767448571,10.59446062,111000.0,110990.0,0.01982789]
[1761767449041,10.6306429,111000.0,110990.0,0.02082789]
[1761767449685,10.6306429,111000.0,110990.0,0.00404]
[1761767450798,10.59446062,111000.0,110990.0,0.00404]
[1761767451228,10.41428044,111000.0,110990.0,0.00404]
[1761767451484,10.59446062,111000.0,110990.0,0.18423641]
[1761767451699,10.07428044,111000.0,110990.0,0.18423641]
[1761767451911,10.02656044,111000.0,110990.0,0.18423641]
[1761767452130,10.07428044,111000.0,110990.0,0.18423641]
[1761767452352,10.02699719,111000.0,110990.0,0.21753641]
[1761767452862,10.63107965,111000.0,110990.0,0.00404]
[1761767453564,10.63107965,111000.0,110990.0,0.00104]
[1761767453801,10.41471719,111000.0,110990.0,4e-05]
[1761767454041,10.02699719,111000.0,110990.0,0.82006442]
[1761767454276,10.02699719,111000.0,110990.0,0.34466542]
[1761767454506,10.02699719,111000.0,110990.0,0.39305542]
[1761767454740,10.02699719,111000.0,110990.0,0.34466542]
[1761767455461,10.02699719,111000.0,110990.0,0.27005542]
[1761767455694,10.07471719,111000.0,110990.0,0.27005542]
[1761767455919,10.02699719,111000.0,110990.0,0.27005542]
[1761767456147,10.07471719,111000.0,110990.0,0.27005542]
[1761767456395,10.07471719,111000.0,110990.0,0.27105542]
[1761767456637,10.02699719,111000.0,110990.0,0.27105542]
[1761767456853,10.02699719,111000.0,110990.0,0.30435542]
[1761767457530,10.02699719,111000.0,110990.0,0.27105542]
[1761767458280,10.25489737,111000.0,110990.0,0.27105542]
[1761767458531,10.25489737,111000.0,110990.0,0.00104]
[1761767460072,10.07471719,111000.0,110990.0,4e-05]
[1761767460292,10.07471719,111000.0,110990.0,0.18023641]
[1761767460539,10.36699719,111000.0,110990.0,0.18023641]
[1761767460955,10.02699719,111000.0,110990.0,0.25484641]
[1761767461196,10.02699719,111000.0,110990.0,0.39305542]
[1761767461647,10.02699719,111000.0,110990.0,0.92578115]
[1761767462131,10.02699719,111000.0,110990.0,0.86845442]
[1761767462545,10.02699719,111000.0,110990.0,0.86945442]
[1761767462770,10.02699719,111000.0,110990.0,0.39305542]
[1761767462984,10.02699719,111000.0,110990.0,0.87045442]
[1761767463201,10.02699719,111000.0,110990.0,0.39605542]
[1761767463873,10.02699719,111000.0,110990.0,0.87145442]
[1761767464139,10.02699719,111000.0,110990.0,0.34766542]
[1761767464377,10.02699719,111000.0,110990.0,0.27305542]
[1761767464611,10.02699719,111000.0,110990.0,0.34289542]
[1761767464848,10.02699719,111000.0,110990.0,0.27305542]
[1761767465386,10.25489737,111000.0,110990.0,0.09285901]
[1761767465619,10.59489737,111000.0,110990.0,0.00304]
[1761767466308,10.59489737,111000.0,110990.0,4e-05]
[1761767466554,10.41471719,111000.0,110990.0,0.18023641]
[1761767466984,10.02699719,111000.0,110990.0,0.21353641]
[1761767467194,10.02699719,111000.0,110990.0,0.25007641]
[1761767467410,10.02699719,111000.0,110990.0,0.21331641]
[1761767467636,10.02699719,111000.0,110990.0,0.35022542]
[1761767467838,10.02699719,111000.0,110990.0,0.30313542]
[1761767468307,10.20717737,111000.0,110990.0,0.08985901]
[1761767468519,10.59557737,111000.0,110990.0,4e-05]
[1761767468731,10.59557737,111000.0,110990.0,0.00104]
[1761767468945,10.59557737,111000.0,110990.0,4e-05]
[1761767469389,10.59557737,111000.0,110990.0,0.00204]
[1761767469610,10.59557737,111000.0,110990.0,4e-05]
[1761767469826,10.63175965,111000.0,110990.0,4e-05]
[1761767473570,10.640139,111000.0,110990.0,4e-05]
[1761767476790,10.72995801,111000.0,110990.0,4e-05]
[1761767477230,10.72893069,111000.0,110990.0,4e-05]
[1761767477914,10.6029294,111000.0,110990.0,4e-05]
[1761767478404,10.6029294,111000.0,110990.0,8e-05]
[1761767480454,0.34,110990.0,110980.0,0.18021265]
[1761767480707,0.36176396,110990.0,110980.0,0.18021265]
[1761767480934,0.60350037,110990.0,110980.0,0.18021265]
[1761767481149,0.60371877,110990.0,110980.0,0.18021265]
[1761767481821,0.60371877,110990.0,110970.0,0.18924031]
[1761767482035,0.00899,110980.0,110970.0,0.31112932]
[1761767482523,0.05782,110980.0,110970.0,0.08981901]
[1761767482736,0.05782,110980.0,110970.0,0.2700479]
[1761767483166,0.05782,110980.0,110970.0,0.2720479]
[1761767483612,0.00899,110980.0,110970.0,0.002]
[1761767483828,0.05782,110980.0,110970.0,0.18222889]
[1761767484044,0.05782,110980.0,110970.0,0.18422889]
[1761767484263,0.23803265,110980.0,110970.0,0.002]
[1761767484486,0.23803265,110980.0,110970.0,0.18222889]
[1761767484712,0.05782,110980.0,110970.0,0.18626889]
[1761767485048,0.05782,110980.0,110970.0,0.00604]
[1761767485223,0.57803265,110980.0,110970.0,0.00604]
[1761767485769,0.69053279,110980.0,110970.0,0.00604]
[1761767486184,0.7803518,110980.0,110970.0,0.00604]
[1761767486800,0.7803518,110980.0,110970.0,0.00404]
[1761767487160,0.78034889,110980.0,110970.0,0.00404]
[1761767487779,0.78034889,110980.0,110970.0,4e-05]
[1761767489261,0.77195286,110980.0,110970.0,4e-05]
[1761767489681,0.78034335,110980.0,110970.0,4e-05]
[1761767490412,0.18022889,110970.0,110960.0,4e-05]
[1761767490627,3.74678185,110970.0,110960.0,0.00018457]
[1761767492228,3.72262839,110970.0,110960.0,0.00018457]
[1761767493213,3.74678185,110970.0,110960.0,0.00018457]
[1761767493654,3.78296413,110970.0,110960.0,0.00018457]
[1761767493866,0.52027762,110940.0,110930.0,0.03042625]
[1761767494085,0.70663891,110940.0,110930.0,0.03042625]
[1761767495410,0.70663891,110940.0,110930.0,0.03242625]
[1761767495617,0.71786712,110940.0,110930.0,0.03642625]
[1761767495823,0.71786712,110940.0,110930.0,0.03242625]
[1761767496930,0.7867433,110940.0,110930.0,0.03042625]
[1761767497355,0.41158821,110940.0,110930.0,0.03042625]
[1761767497564,0.59186583,110940.0,110930.0,0.03042625]
[1761767499729,0.59186583,110940.0,110930.0,0.03242625]
[1761767499934,0.59186583,110940.0,110930.0,0.03042625]
[1761767500143,0.25186583,110940.0,110930.0,0.03442625]
[1761767500806,0.07158821,110940.0,110930.0,0.03442625]
[1761767501017,0.02404821,110940.0,110930.0,0.28157012]
[1761767501231,0.01122821,110940.0,110930.0,0.62157012]
[1761767501437,0.01122821,110940.0,110930.0,0.66825012]
[1761767501645,0.03918,110950.0,110940.0,0.18027762]
[1761767501858,0.03918,110950.0,110940.0,0.21160762]
[1761767502060,0.08239926,110950.0,110940.0,0.21160762]
[1761767502267,0.30938095,110950.0,110930.0,0.68005913]
[1761767502444,0.01339,110940.0,110930.0,0.69522037]
[1761767502866,0.01339,110940.0,110930.0,0.72655037]
[1761767503286,0.23040103,110950.0,110930.0,0.75506913]
[1761767503488,0.03226,110940.0,110930.0,0.70838913]
[1761767503691,0.27712063,110950.0,110930.0,0.70738913]
[1761767503895,0.03226,110940.0,110930.0,0.70738913]
[1761767504455,0.03226,110940.0,110930.0,0.36738913]
[1761767504694,0.03226,110940.0,110930.0,0.30053913]
[1761767504900,0.07898,110940.0,110930.0,0.21372012]
[1761767505558,0.07898,110940.0,110930.0,0.21072012]
[1761767506013,0.07898,110940.0,110930.0,0.21672012]
[1761767506239,0.25925762,110940.0,110930.0,0.03042625]
[1761767506467,0.25925762,110940.0,110930.0,0.21072012]
[1761767506743,0.25925762,110940.0,110930.0,0.03342625]
[1761767506980,0.25925762,110940.0,110930.0,0.03442625]
[1761767507195,0.59925762,110940.0,110930.0,0.03442625]
[1761767507900,0.59925762,110940.0,110930.0,0.03042625]
[1761767508109,0.59925762,110940.0,110930.0,0.03542625]
[1761767508337,0.59925762,110940.0,110930.0,0.03242625]
[1761767508598,0.59925762,110940.0,110930.0,0.03542625]
[1761767508825,0.25925762,110940.0,110930.0,0.03342625]
[1761767509058,0.59925762,110940.0,110930.0,0.03342625]
[1761767509324,0.55253762,110940.0,110930.0,0.06475625]
[1761767509530,0.55253762,110940.0,110930.0,0.03342625]
[1761767509735,0.59925762,110940.0,110930.0,0.03342625]
[1761767510152,0.59925762,110940.0,110930.0,0.03442625]
[1761767516485,0.6354399,110940.0,110930.0,0.03442625]
[1761767517167,0.6354399,110940.0,110930.0,0.03342625]
[1761767517382,0.6354399,110940.0,110930.0,0.03042625]
[1761767517815,0.6354399,110940.0,110930.0,0.03242625]
[1761767519753,0.59925762,110940.0,110930.0,0.03242625]
[1761767520112,0.6354399,110940.0,110930.0,0.03242625]
[1761767521849,0.74940553,110940.0,110930.0,0.03242625]
[1761767522067,0.75781061,110940.0,110930.0,0.03242625]
[1761767522512,3.75781061,110940.0,110930.0,0.03242625]
[1761767522729,3.76586076,110940.0,110930.0,0.03242625]
[1761767522943,3.8850243,110940.0,110930.0,0.03242625]
[1761767523143,3.90898968,110940.0,110930.0,0.03242625]
[1761767523414,3.86083076,110940.0,110930.0,0.03242625]
[1761767523616,3.90898968,110940.0,110930.0,0.03042625]
[1761767524259,3.91898967,110940.0,110930.0,0.03042625]
[1761767524464,3.91998967,110940.0,110930.0,0.03042625]
[1761767524886,3.87283075,110940.0,110930.0,0.03042625]
[1761767525097,3.92098967,110940.0,110930.0,1e-08]
[1761767527067,4.12098967,110940.0,110930.0,1e-08]
[1761767527773,4.0887929,110940.0,110930.0,1e-08]
[1761767528279,3.69586614,110930.0,110920.0,1e-08]
[1761767528495,0.52040772,110860.0,110840.0,0.08144695]
[1761767528712,0.23231399,110850.0,110840.0,0.00088253]
[1761767528926,0.27818399,110850.0,110840.0,0.00088253]
[1761767530673,0.27818399,110850.0,110840.0,0.00588253]
[1761767530879,0.27818399,110850.0,110840.0,0.00288253]
[1761767531295,0.27818399,110850.0,110840.0,0.00788253]
[1761767531705,0.65436627,110850.0,110840.0,0.00788253]
[1761767532811,0.66523615,110850.0,110840.0,0.00588253]
[1761767533024,0.66523615,110850.0,110840.0,0.00088253]
[1761767533201,0.66523615,110850.0,110840.0,0.00688253]
[1761767533677,0.44862988,110850.0,110840.0,0.00688253]
[1761767533905,0.06275988,110850.0,110840.0,0.2155028]
[1761767534126,0.01086988,110850.0,110840.0,0.30634755]
[1761767534342,0.26753101,110870.0,110850.0,0.18042399]
[1761767534552,0.03301,110870.0,110860.0,0.21058772]
[1761767534759,0.03301,110880.0,110870.0,0.18039144]
[1761767535004,0.06314,110880.0,110860.0,0.31661673]
[1761767535226,0.022,110870.0,110860.0,0.30040673]
[1761767535438,0.05501,110870.0,110860.0,0.27022673]
[1761767535642,0.05501,110870.0,110860.0,0.30040673]
[1761767535844,0.03301,110870.0,110860.0,0.30040673]
[1761767536257,0.03301,110870.0,110860.0,0.35279673]
[1761767536466,0.03301,110870.0,110860.0,0.30640673]
[1761767536684,0.04409018,110880.0,110870.0,0.18039144]
[1761767536917,0.03013,110870.0,110860.0,0.30640673]
[1761767537123,0.03013,110870.0,110860.0,0.12599901]
[1761767537302,0.03013,110870.0,110860.0,0.27922673]
[1761767537527,0.03013,110870.0,110860.0,0.30940673]
[1761767537717,0.03013,110870.0,110860.0,0.27922673]
[1761767537936,0.03013,110870.0,110860.0,0.30940673]
[1761767538086,0.03013,110870.0,110860.0,0.30640673]
[1761767538931,0.03013,110870.0,110860.0,0.27622673]
[1761767539921,0.03013,110870.0,110860.0,0.27753906]
[1761767540562,0.03013,110870.0,110860.0,0.28053906]
[1761767540923,0.25563144,110870.0,110860.0,0.01031233]
[1761767541390,0.59563144,110870.0,110860.0,0.01031233]
[1761767542009,0.59563144,110870.0,110860.0,0.00431233]
[1761767542412,0.59563144,110870.0,110860.0,0.00831233]
[1761767542627,0.59563144,110870.0,110860.0,0.00431233]
[1761767543052,0.59563144,110870.0,110860.0,0.00631233]
[1761767543428,0.72163273,110870.0,110860.0,0.00331233]
[1761767543854,0.72163273,110870.0,110860.0,0.00531233]
[1761767544257,0.72163273,110870.0,110860.0,0.00331233]
[1761767544258,0.59563144,110870.0,110860.0,0.00331233]
[1761767544616,0.41524,110870.0,110860.0,0.18472005]
[1761767545252,0.59563144,110870.0,110860.0,0.18472005]
[1761767545829,0.59563144,110870.0,110860.0,0.00431233]
[1761767554756,0.74089318,110870.0,110860.0,0.00431233]
[1761767555231,0.74089318,110870.0,110860.0,0.00435233]
[1761767555653,0.74925669,110870.0,110860.0,0.00435233]
[1761767555902,0.74925669,110870.0,110860.0,0.00235233]
[1761767556100,0.74925669,110870.0,110860.0,0.00335233]
[1761767556313,0.74925669,110870.0,110860.0,0.00235233]
[1761767556537,0.77337577,110870.0,110860.0,0.00335233]
[1761767556960,0.77337577,110870.0,110860.0,0.00235233]
[1761767557601,0.77337577,110870.0,110860.0,0.00135233]
[1761767561963,3.81553454,110870.0,110860.0,1e-08]
[1761767562087,3.90608196,110870.0,110860.0,1e-08]
[1761767562513,3.95235219,110870.0,110860.0,1e-08]
[1761767564069,3.90411402,110870.0,110860.0,1e-08]
[1761767565437,3.95235219,110870.0,110860.0,1e-08]
[1761767567092,4.05389992,110870.0,110860.0,1e-08]
[1761767567329,1.02973594,110870.0,110860.0,1e-08]
[1761767567532,1.04184403,110870.0,110860.0,1e-08]
[1761767567740,1.00566175,110870.0,110860.0,1e-08]
[1761767567939,1.04184403,110870.0,110860.0,1e-08]
[1761767568368,4.04184403,110870.0,110860.0,1e-08]
[1761767568525,4.04184041,110870.0,110860.0,1e-08]
[1761767569169,4.170885,110870.0,110860.0,1e-08]
[1761767569389,4.1468104,110870.0,110860.0,1e-08]
[1761767571071,4.13681041,110870.0,110860.0,1e-08]
[1761767571274,4.1468104,110870.0,110860.0,1e-08]
[1761767571469,4.17088947,110870.0,110860.0,1e-08]
[1761767571671,4.1468104,110870.0,110860.0,1e-08]